[Event "Early-Titled-Tuesday-Blitz-February-06-2024"]
[Site "Chess.com"]
[Date "2024.02.06"]
[Round "7"]
[White "kekic76"]
[Black "JiiHart"]
[Result "1-0"]
[WhiteElo "2364"]
[BlackElo "2150"]
[TimeControl "180+1"]
[EndTime "9:16:34 PST"]
[Termination "kekic76 won by resignation"]

1. e4 {[%clk 0:03:00.9]} 1... c5 {[%clk 0:02:58.9]} 2. Nf3 {[%clk 0:03:00.5]}
2... Nc6 {[%clk 0:02:59.2]} 3. d4 {[%clk 0:03:00.8]} 3... cxd4 {[%clk
0:02:58.6]} 4. Nxd4 {[%clk 0:03:01.7]} 4... Nf6 {[%clk 0:02:58.7]} 5. Nxc6
{[%clk 0:03:00.8]} 5... bxc6 {[%clk 0:02:58.6]} 6. Bd3 {[%clk 0:03:01]} 6... e5
{[%clk 0:02:58.3]} 7. O-O {[%clk 0:03:00.7]} 7... Be7 {[%clk 0:02:58.6]} 8. Nc3
{[%clk 0:02:55.2]} 8... O-O {[%clk 0:02:57.8]} 9. b3 {[%clk 0:02:55.7]} 9... Bb7
{[%clk 0:02:56.4]} 10. Bb2 {[%clk 0:02:55.9]} 10... d5 {[%clk 0:02:56.3]} 11.
Qe2 {[%clk 0:02:55.7]} 11... Bd6 {[%clk 0:02:49.1]} 12. Rfe1 {[%clk 0:02:54.6]}
12... Re8 {[%clk 0:02:48.6]} 13. Ba6 {[%clk 0:02:53.1]} 13... Bxa6 {[%clk
0:02:13.1]} 14. Qxa6 {[%clk 0:02:54]} 14... Qb6 {[%clk 0:01:59]} 15. Qe2 {[%clk
0:02:52.9]} 15... d4 {[%clk 0:01:49.6]} 16. Na4 {[%clk 0:02:48.3]} 16... Qc7
{[%clk 0:01:49]} 17. Bc1 {[%clk 0:02:48.2]} 17... h6 {[%clk 0:01:41.4]} 18. Bd2
{[%clk 0:02:45.5]} 18... c5 {[%clk 0:01:37.4]} 19. Nb2 {[%clk 0:02:44]} 19...
Bf8 {[%clk 0:01:24.4]} 20. Nc4 {[%clk 0:02:43.6]} 20... g6 {[%clk 0:01:24.1]}
21. Qf3 {[%clk 0:02:34]} 21... Bg7 {[%clk 0:01:23.7]} 22. Bxh6 {[%clk 0:02:32]}
22... Bxh6 {[%clk 0:01:14.6]} 23. Qxf6 {[%clk 0:02:30.1]} 23... Bg7 {[%clk
0:01:14.9]} 24. Qd6 {[%clk 0:02:29.6]} 24... Qxd6 {[%clk 0:01:11.3]} 25. Nxd6
{[%clk 0:02:30.5]} 25... Red8 {[%clk 0:01:08.9]} 26. Nc4 {[%clk 0:02:16.5]}
26... d3 {[%clk 0:01:09]} 27. cxd3 {[%clk 0:01:53.8]} 27... Rxd3 {[%clk
0:01:08.8]} 28. Red1 {[%clk 0:01:47.3]} 28... Rad8 {[%clk 0:01:07.9]} 29. Rxd3
{[%clk 0:01:47.2]} 29... Rxd3 {[%clk 0:01:07.8]} 30. Kf1 {[%clk 0:01:47.2]}
30... f5 {[%clk 0:01:06.6]} 31. exf5 {[%clk 0:01:42.3]} 31... gxf5 {[%clk
0:01:06]} 32. Ke2 {[%clk 0:01:42.5]} 32... e4 {[%clk 0:01:06.1]} 33. Rd1 {[%clk
0:01:42.6]} 33... Rd4 {[%clk 0:01:01.5]} 34. Nd6 {[%clk 0:01:35]} 34... f4
{[%clk 0:00:40.8]} 35. Rxd4 {[%clk 0:01:34.5]} 35... Bxd4 {[%clk 0:00:35.4]} 36.
Nxe4 {[%clk 0:01:34.4]} 36... Kf7 {[%clk 0:00:34.5]} 37. Kd3 {[%clk 0:01:33.1]}
37... Ke6 {[%clk 0:00:30.8]} 38. b4 {[%clk 0:01:27.1]} 38... Kd5 {[%clk
0:00:28.6]} 39. bxc5 {[%clk 0:01:27.4]} 39... Bxc5 {[%clk 0:00:25.7]} 40. Nxc5
{[%clk 0:01:26.4]} 40... Kxc5 {[%clk 0:00:26.2]} 41. h4 {[%clk 0:01:24.5]} 41...
a5 {[%clk 0:00:26.6]} 42. h5 {[%clk 0:01:23.2]} 42... a4 {[%clk 0:00:26.5]} 43.
h6 {[%clk 0:01:22.3]} 1-0

[Event "Early-Titled-Tuesday-Blitz-February-06-2024"]
[Site "Chess.com"]
[Date "2024.02.06"]
[Round "7"]
[White "GMT4114"]
[Black "Szachulec75"]
[Result "0-1"]
[WhiteElo "1969"]
[BlackElo "2213"]
[TimeControl "180+1"]
[EndTime "9:16:35 PST"]
[Termination "Szachulec75 won on time"]

1. e4 {[%clk 0:03:00.9]} 1... d6 {[%clk 0:02:59]} 2. d4 {[%clk 0:03:00.6]} 2...
Nf6 {[%clk 0:02:58.6]} 3. Nc3 {[%clk 0:03:01.2]} 3... c6 {[%clk 0:02:55.1]} 4.
Bc4 {[%clk 0:03:00.2]} 4... e6 {[%clk 0:02:54]} 5. f4 {[%clk 0:02:56.8]} 5... d5
{[%clk 0:02:50.6]} 6. Bd3 {[%clk 0:02:42.9]} 6... dxe4 {[%clk 0:02:49.6]} 7.
Nxe4 {[%clk 0:02:41.8]} 7... Be7 {[%clk 0:02:48.6]} 8. Nf3 {[%clk 0:02:40.7]}
8... O-O {[%clk 0:02:45.8]} 9. c3 {[%clk 0:02:31.8]} 9... Nbd7 {[%clk
0:02:43.5]} 10. Ne5 {[%clk 0:02:31.5]} 10... c5 {[%clk 0:02:42.5]} 11. Be3
{[%clk 0:02:29.1]} 11... b6 {[%clk 0:02:36.2]} 12. Qe2 {[%clk 0:02:15]} 12...
Bb7 {[%clk 0:02:34.8]} 13. Ng5 {[%clk 0:01:47.2]} 13... h6 {[%clk 0:02:32]} 14.
h4 {[%clk 0:01:36.4]} 14... Nxe5 {[%clk 0:02:21.8]} 15. fxe5 {[%clk 0:01:28.2]}
15... Nd5 {[%clk 0:02:22.1]} 16. Bd2 {[%clk 0:00:39.5]} 16... hxg5 {[%clk
0:02:18.1]} 17. hxg5 {[%clk 0:00:39.1]} 17... g6 {[%clk 0:02:18.3]} 18. O-O-O
{[%clk 0:00:27.1]} 18... Kg7 {[%clk 0:02:15.7]} 19. Qg4 {[%clk 0:00:25.8]} 19...
cxd4 {[%clk 0:02:09.9]} 20. cxd4 {[%clk 0:00:24.3]} 20... Rh8 {[%clk 0:02:09.7]}
21. Kb1 {[%clk 0:00:17.4]} 21... Nb4 {[%clk 0:01:56.8]} 22. Bxb4 {[%clk
0:00:02.4]} 22... Bxb4 {[%clk 0:01:55.6]} 23. Rh6 {[%clk 0:00:02.6]} 23... Rxh6
{[%clk 0:01:49.7]} 24. gxh6+ {[%clk 0:00:02.5]} 24... Kh7 {[%clk 0:01:50.2]} 25.
Rf1 {[%clk 0:00:03.1]} 25... Qe7 {[%clk 0:01:43.6]} 26. Qf4 {[%clk 0:00:02.9]}
26... Rf8 {[%clk 0:01:40]} 27. g4 {[%clk 0:00:02.8]} 27... Qh4 {[%clk
0:01:13.2]} 28. a3 {[%clk 0:00:01.5]} 28... Be7 {[%clk 0:01:10.6]} 0-1

[Event "Early-Titled-Tuesday-Blitz-February-06-2024"]
[Site "Chess.com"]
[Date "2024.02.06"]
[Round "7"]
[White "manitodeplomo"]
[Black "FairChess_on_YouTube"]
[Result "0-1"]
[WhiteElo "2603"]
[BlackElo "3064"]
[TimeControl "180+1"]
[EndTime "9:16:37 PST"]
[Termination "FairChess_on_YouTube won on time"]

1. d4 {[%clk 0:02:16.9]} 1... Nf6 {[%clk 0:02:57.6]} 2. c4 {[%clk 0:02:15.5]}
2... e6 {[%clk 0:02:57.9]} 3. Nf3 {[%clk 0:02:13.8]} 3... b6 {[%clk 0:02:57.7]}
4. g3 {[%clk 0:02:12.3]} 4... Bb7 {[%clk 0:02:58.1]} 5. Bg2 {[%clk 0:02:11.9]}
5... g6 {[%clk 0:02:58.7]} 6. Nc3 {[%clk 0:02:11.6]} 6... Bg7 {[%clk 0:02:58.2]}
7. Qc2 {[%clk 0:02:11.8]} 7... c5 {[%clk 0:02:53.1]} 8. e4 {[%clk 0:02:00.5]}
8... Nc6 {[%clk 0:02:41.1]} 9. d5 {[%clk 0:01:51.6]} 9... exd5 {[%clk
0:02:25.4]} 10. cxd5 {[%clk 0:01:38.5]} 10... Nb4 {[%clk 0:02:22.7]} 11. Qa4
{[%clk 0:01:25.8]} 11... Nd3+ {[%clk 0:02:10.8]} 12. Kd2 {[%clk 0:01:16.7]}
12... Nxf2 {[%clk 0:01:49.9]} 13. Re1 {[%clk 0:01:04.3]} 13... O-O {[%clk
0:01:46.2]} 14. Kc2 {[%clk 0:00:56]} 14... d6 {[%clk 0:01:39.2]} 15. h3 {[%clk
0:00:50.7]} 15... a6 {[%clk 0:01:30.7]} 16. Be3 {[%clk 0:00:13.4]} 16... b5
{[%clk 0:01:28]} 17. Qa3 {[%clk 0:00:13.3]} 17... N2xe4 {[%clk 0:01:10.9]} 18.
Nxe4 {[%clk 0:00:13]} 18... Nxe4 {[%clk 0:01:11.8]} 19. Rad1 {[%clk 0:00:10.2]}
19... Re8 {[%clk 0:01:11.5]} 20. g4 {[%clk 0:00:07.7]} 20... b4 {[%clk
0:01:07.2]} 21. Qd3 {[%clk 0:00:05.6]} 21... Qf6 {[%clk 0:01:02.8]} 22. Bc1
{[%clk 0:00:03.2]} 22... Nf2 {[%clk 0:01:02.8]} 23. Qc4 {[%clk 0:00:02.1]} 23...
Nxd1 {[%clk 0:01:02.2]} 24. Rxd1 {[%clk 0:00:03]} 24... a5 {[%clk 0:00:58.5]}
0-1

[Event "Early-Titled-Tuesday-Blitz-February-06-2024"]
[Site "Chess.com"]
[Date "2024.02.06"]
[Round "7"]
[White "esrosenberg"]
[Black "xakevicius91"]
[Result "0-1"]
[WhiteElo "2434"]
[BlackElo "2608"]
[TimeControl "180+1"]
[EndTime "9:16:39 PST"]
[Termination "xakevicius91 won by resignation"]

1. c4 {[%clk 0:03:00.9]} 1... Nf6 {[%clk 0:02:57.8]} 2. Nf3 {[%clk 0:03:00.8]}
2... c5 {[%clk 0:02:57.4]} 3. Nc3 {[%clk 0:02:58.9]} 3... e6 {[%clk 0:02:57.3]}
4. g3 {[%clk 0:02:58.3]} 4... b6 {[%clk 0:02:57.4]} 5. Bg2 {[%clk 0:02:58.2]}
5... Bb7 {[%clk 0:02:57.9]} 6. O-O {[%clk 0:02:58.7]} 6... Be7 {[%clk
0:02:56.7]} 7. d4 {[%clk 0:02:58.6]} 7... cxd4 {[%clk 0:02:57]} 8. Qxd4 {[%clk
0:02:58.1]} 8... d6 {[%clk 0:02:56.9]} 9. Bg5 {[%clk 0:02:57.8]} 9... a6 {[%clk
0:02:45.2]} 10. Bxf6 {[%clk 0:02:56.5]} 10... Bxf6 {[%clk 0:02:46.1]} 11. Qf4
{[%clk 0:02:56.7]} 11... O-O {[%clk 0:02:46.1]} 12. Rfd1 {[%clk 0:02:55.3]}
12... Be7 {[%clk 0:02:46.7]} 13. Ne4 {[%clk 0:02:39.5]} 13... Bxe4 {[%clk
0:02:45.5]} 14. Qxe4 {[%clk 0:02:40.4]} 14... Ra7 {[%clk 0:02:45.9]} 15. Nd4
{[%clk 0:02:33.3]} 15... Qc8 {[%clk 0:02:45.8]} 16. Rac1 {[%clk 0:02:21.4]}
16... Rc7 {[%clk 0:02:44.8]} 17. b3 {[%clk 0:02:21.1]} 17... Rc5 {[%clk
0:02:42.1]} 18. Qb1 {[%clk 0:02:07.1]} 18... Rd8 {[%clk 0:02:39.4]} 19. e4
{[%clk 0:02:01.2]} 19... Bf8 {[%clk 0:02:38.4]} 20. f4 {[%clk 0:01:59.9]} 20...
Rc7 {[%clk 0:02:36.1]} 21. Bf1 {[%clk 0:01:58.3]} 21... Nc6 {[%clk 0:02:33.7]}
22. Nxc6 {[%clk 0:01:55.9]} 22... Rxc6 {[%clk 0:02:34.6]} 23. a4 {[%clk
0:01:52.6]} 23... Rc7 {[%clk 0:02:33]} 24. b4 {[%clk 0:01:52]} 24... a5 {[%clk
0:02:11.2]} 25. bxa5 {[%clk 0:01:36.6]} 25... bxa5 {[%clk 0:02:12.1]} 26. Bd3
{[%clk 0:01:24.2]} 26... h5 {[%clk 0:02:10.6]} 27. Kg2 {[%clk 0:01:23.8]} 27...
Rc5 {[%clk 0:02:08.9]} 28. Rc2 {[%clk 0:01:16.3]} 28... h4 {[%clk 0:02:07.4]}
29. Rcd2 {[%clk 0:01:11.7]} 29... Qc6 {[%clk 0:02:07.1]} 30. Kh3 {[%clk
0:00:47.3]} 30... Be7 {[%clk 0:02:05.1]} 31. e5 {[%clk 0:00:42.9]} 31... d5
{[%clk 0:01:51.1]} 32. cxd5 {[%clk 0:00:42.7]} 32... exd5 {[%clk 0:01:52]} 33.
Bh7+ {[%clk 0:00:40.2]} 33... Kh8 {[%clk 0:01:51.3]} 34. Bf5 {[%clk 0:00:40.6]}
34... Qxa4 {[%clk 0:01:46.8]} 35. Qb7 {[%clk 0:00:32.7]} 35... Qe8 {[%clk
0:01:45.9]} 36. e6 {[%clk 0:00:27.9]} 36... fxe6 {[%clk 0:01:42.4]} 37. Bxe6
{[%clk 0:00:28]} 37... Bf6 {[%clk 0:01:29.9]} 38. Rxd5 {[%clk 0:00:25]} 38...
Rcxd5 {[%clk 0:01:21.5]} 39. Bxd5 {[%clk 0:00:19.6]} 39... hxg3 {[%clk
0:01:16.5]} 40. hxg3 {[%clk 0:00:19.3]} 40... Qh5+ {[%clk 0:01:15.4]} 0-1

[Event "Early-Titled-Tuesday-Blitz-February-06-2024"]
[Site "Chess.com"]
[Date "2024.02.06"]
[Round "7"]
[White "atalz0"]
[Black "Boundless_Strike"]
[Result "0-1"]
[WhiteElo "2474"]
[BlackElo "2660"]
[TimeControl "180+1"]
[EndTime "9:16:40 PST"]
[Termination "Boundless_Strike won by resignation"]

1. d4 {[%clk 0:03:00.9]} 1... e6 {[%clk 0:02:59]} 2. c4 {[%clk 0:03:00.7]} 2...
e5 {[%clk 0:02:50.2]} 3. dxe5 {[%clk 0:02:52.6]} 3... d6 {[%clk 0:02:50.5]} 4.
Bf4 {[%clk 0:02:46]} 4... Nc6 {[%clk 0:02:50]} 5. Nf3 {[%clk 0:02:45.2]} 5...
Bg4 {[%clk 0:02:49.6]} 6. exd6 {[%clk 0:01:55.1]} 6... Qf6 {[%clk 0:02:49.2]} 7.
Qd2 {[%clk 0:01:55.3]} 7... Bxd6 {[%clk 0:02:46.8]} 8. Bg5 {[%clk 0:01:39.8]}
8... Qe6 {[%clk 0:02:41.8]} 9. e3 {[%clk 0:01:32.2]} 9... f6 {[%clk 0:02:39.6]}
10. Bh4 {[%clk 0:01:28.9]} 10... O-O-O {[%clk 0:02:40.2]} 11. Qc2 {[%clk
0:00:59.5]} 11... Bxf3 {[%clk 0:01:30.9]} 12. gxf3 {[%clk 0:01:00.4]} 12... Nd4
{[%clk 0:01:29.8]} 13. Qd1 {[%clk 0:00:47]} 13... Nf5 {[%clk 0:01:11.4]} 14. Qa4
{[%clk 0:00:30.5]} 14... Nxh4 {[%clk 0:01:07.8]} 15. Qxa7 {[%clk 0:00:30.3]}
15... Bb4+ {[%clk 0:00:55.1]} 16. Nc3 {[%clk 0:00:29.3]} 16... Nxf3+ {[%clk
0:00:55]} 17. Ke2 {[%clk 0:00:26.6]} 17... Rd2+ {[%clk 0:00:39.5]} 18. Kxf3
{[%clk 0:00:26.4]} 18... Qf5+ {[%clk 0:00:40.2]} 19. Kg3 {[%clk 0:00:17]} 19...
Qxf2+ {[%clk 0:00:40.4]} 20. Kh3 {[%clk 0:00:13.2]} 20... Qf3+ {[%clk
0:00:40.5]} 0-1

[Event "Early-Titled-Tuesday-Blitz-February-06-2024"]
[Site "Chess.com"]
[Date "2024.02.06"]
[Round "7"]
[White "ukchessbomber"]
[Black "Flaccidmoves"]
[Result "1-0"]
[WhiteElo "2658"]
[BlackElo "2450"]
[TimeControl "180+1"]
[EndTime "9:16:42 PST"]
[Termination "ukchessbomber won by resignation"]

1. b4 {[%clk 0:03:00.9]} 1... e5 {[%clk 0:02:57.6]} 2. Bb2 {[%clk 0:02:59.9]}
2... Bxb4 {[%clk 0:02:58.2]} 3. Bxe5 {[%clk 0:02:59.5]} 3... Nf6 {[%clk
0:02:58.8]} 4. e3 {[%clk 0:03:00.2]} 4... O-O {[%clk 0:02:54.4]} 5. c4 {[%clk
0:03:00.3]} 5... Nc6 {[%clk 0:02:45.4]} 6. Bb2 {[%clk 0:02:58.9]} 6... d5 {[%clk
0:02:41.8]} 7. Nf3 {[%clk 0:02:58.7]} 7... Bg4 {[%clk 0:02:36.8]} 8. cxd5 {[%clk
0:02:58.9]} 8... Nxd5 {[%clk 0:02:26.3]} 9. Be2 {[%clk 0:02:58.9]} 9... Qd6
{[%clk 0:02:21.4]} 10. O-O {[%clk 0:02:58.2]} 10... Rad8 {[%clk 0:02:14.7]} 11.
a3 {[%clk 0:02:58.2]} 11... Ba5 {[%clk 0:02:12.6]} 12. d4 {[%clk 0:02:58.2]}
12... Rfe8 {[%clk 0:02:10.4]} 13. Nbd2 {[%clk 0:02:57.3]} 13... Qh6 {[%clk
0:01:59.2]} 14. Nc4 {[%clk 0:02:54.9]} 14... Nc3 {[%clk 0:01:41.1]} 15. Bxc3
{[%clk 0:02:52.2]} 15... Bxc3 {[%clk 0:01:42]} 16. Rc1 {[%clk 0:02:49.8]} 16...
Bxf3 {[%clk 0:01:08.5]} 17. Bxf3 {[%clk 0:02:44.3]} 17... Bxd4 {[%clk
0:01:08.3]} 18. exd4 {[%clk 0:01:40.6]} 18... Nxd4 {[%clk 0:01:07.7]} 19. Ne3
{[%clk 0:01:41.1]} 19... c6 {[%clk 0:00:48.4]} 20. Rc4 {[%clk 0:01:24.8]} 20...
Qf4 {[%clk 0:00:32.9]} 21. Qa1 {[%clk 0:01:19.3]} 21... Nxf3+ {[%clk 0:00:21]}
22. gxf3 {[%clk 0:01:19]} 22... Qxf3 {[%clk 0:00:21.9]} 23. Rg4 {[%clk
0:01:19.3]} 23... g6 {[%clk 0:00:20.1]} 24. Rg3 {[%clk 0:01:05.5]} 24... Qe4
{[%clk 0:00:19.3]} 25. Ng4 {[%clk 0:01:05.2]} 25... Re6 {[%clk 0:00:02.8]} 26.
Nf6+ {[%clk 0:01:01]} 26... Rxf6 {[%clk 0:00:03.4]} 27. Qxf6 {[%clk 0:01:01.6]}
27... Re8 {[%clk 0:00:03.1]} 28. Re3 {[%clk 0:01:01.2]} 28... Re6 {[%clk
0:00:02.3]} 29. Qd8+ {[%clk 0:01:00.2]} 1-0

[Event "Early-Titled-Tuesday-Blitz-February-06-2024"]
[Site "Chess.com"]
[Date "2024.02.06"]
[Round "7"]
[White "kecalk"]
[Black "AlexPapasimakopoulos"]
[Result "1-0"]
[WhiteElo "2517"]
[BlackElo "2731"]
[TimeControl "180+1"]
[EndTime "9:16:46 PST"]
[Termination "kecalk won by checkmate"]

1. e4 {[%clk 0:03:00.9]} 1... e6 {[%clk 0:02:55]} 2. d4 {[%clk 0:02:59.5]} 2...
d5 {[%clk 0:02:42.6]} 3. exd5 {[%clk 0:02:59.8]} 3... exd5 {[%clk 0:02:42.5]} 4.
Nf3 {[%clk 0:03:00.5]} 4... Bg4 {[%clk 0:02:42.4]} 5. h3 {[%clk 0:02:55.9]} 5...
Bh5 {[%clk 0:02:42]} 6. g4 {[%clk 0:02:55.3]} 6... Bg6 {[%clk 0:02:41.8]} 7. Ne5
{[%clk 0:02:55.5]} 7... Bd6 {[%clk 0:02:39.9]} 8. Nxg6 {[%clk 0:02:48.3]} 8...
hxg6 {[%clk 0:02:39.6]} 9. Nc3 {[%clk 0:02:46.8]} 9... c6 {[%clk 0:02:37.6]} 10.
Be3 {[%clk 0:02:44.2]} 10... Nf6 {[%clk 0:02:37.3]} 11. Qf3 {[%clk 0:02:43.1]}
11... Bb4 {[%clk 0:02:35]} 12. Bd3 {[%clk 0:02:09.6]} 12... Nbd7 {[%clk
0:02:20.2]} 13. a3 {[%clk 0:01:56.9]} 13... Bxc3+ {[%clk 0:02:08.1]} 14. bxc3
{[%clk 0:01:57.8]} 14... Qe7 {[%clk 0:02:06]} 15. Kf1 {[%clk 0:01:51.5]} 15...
Ne4 {[%clk 0:02:00.3]} 16. c4 {[%clk 0:01:38.4]} 16... Ng5 {[%clk 0:01:40.6]}
17. Bxg5 {[%clk 0:01:11]} 17... Qxg5 {[%clk 0:01:41.5]} 18. Re1+ {[%clk
0:01:11]} 18... Kf8 {[%clk 0:01:38.9]} 19. cxd5 {[%clk 0:00:56.6]} 19... cxd5
{[%clk 0:01:30.5]} 20. Kg2 {[%clk 0:00:27.1]} 20... Nf6 {[%clk 0:01:29.1]} 21.
Re5 {[%clk 0:00:24.9]} 21... Qd2 {[%clk 0:01:28.8]} 22. Rb1 {[%clk 0:00:16.6]}
22... b6 {[%clk 0:01:28.3]} 23. Rd1 {[%clk 0:00:14]} 23... Qc3 {[%clk 0:01:26]}
24. g5 {[%clk 0:00:13.2]} 24... Nh5 {[%clk 0:01:26.1]} 25. Rxd5 {[%clk
0:00:08.8]} 25... Qc7 {[%clk 0:01:16.8]} 26. Re5 {[%clk 0:00:06.1]} 26... Rd8
{[%clk 0:01:15.7]} 27. Bxg6 {[%clk 0:00:05.5]} 27... Kg8 {[%clk 0:01:08]} 28.
Bxh5 {[%clk 0:00:05.6]} 28... g6 {[%clk 0:01:05]} 29. Bg4 {[%clk 0:00:05.7]}
29... Rxd4 {[%clk 0:01:04.4]} 30. Re8+ {[%clk 0:00:02.9]} 30... Kg7 {[%clk
0:01:04.5]} 31. Qf6+ {[%clk 0:00:02.7]} 31... Kh7 {[%clk 0:01:04.4]} 32. Rxh8#
{[%clk 0:00:03.6]} 1-0

[Event "Early-Titled-Tuesday-Blitz-February-06-2024"]
[Site "Chess.com"]
[Date "2024.02.06"]
[Round "7"]
[White "Rawnsdale"]
[Black "Nuvas"]
[Result "0-1"]
[WhiteElo "2506"]
[BlackElo "2775"]
[TimeControl "180+1"]
[EndTime "9:16:47 PST"]
[Termination "Nuvas won by resignation"]

1. e4 {[%clk 0:02:15.8]} 1... e5 {[%clk 0:03:00]} 2. Nf3 {[%clk 0:02:15.8]} 2...
Nc6 {[%clk 0:03:00.5]} 3. Bb5 {[%clk 0:02:14]} 3... a6 {[%clk 0:03:01]} 4. Ba4
{[%clk 0:02:12.6]} 4... Nf6 {[%clk 0:03:00.6]} 5. O-O {[%clk 0:02:12.8]} 5...
Bc5 {[%clk 0:03:01.3]} 6. c3 {[%clk 0:02:12.6]} 6... b5 {[%clk 0:03:01.8]} 7.
Bc2 {[%clk 0:02:10.1]} 7... d5 {[%clk 0:03:02.1]} 8. exd5 {[%clk 0:02:09.3]}
8... Qxd5 {[%clk 0:03:02.6]} 9. Re1 {[%clk 0:01:39.5]} 9... O-O {[%clk 0:02:59]}
10. d3 {[%clk 0:01:35.2]} 10... Bg4 {[%clk 0:02:58.7]} 11. h3 {[%clk 0:01:34.6]}
11... Bxf3 {[%clk 0:02:58.8]} 12. Qxf3 {[%clk 0:01:35.5]} 12... Qxf3 {[%clk
0:02:59]} 13. gxf3 {[%clk 0:01:36.4]} 13... Rfe8 {[%clk 0:02:50.3]} 14. Nd2
{[%clk 0:01:36.2]} 14... Nd5 {[%clk 0:02:42.8]} 15. Ne4 {[%clk 0:01:35.1]} 15...
Bb6 {[%clk 0:02:43.3]} 16. a4 {[%clk 0:01:33]} 16... b4 {[%clk 0:02:43.5]} 17.
c4 {[%clk 0:01:31.2]} 17... Nd4 {[%clk 0:02:37.5]} 18. Bd1 {[%clk 0:01:28.1]}
18... Ne7 {[%clk 0:02:30]} 19. a5 {[%clk 0:01:27.6]} 19... Ba7 {[%clk 0:02:30]}
20. Be3 {[%clk 0:01:27.7]} 20... Nef5 {[%clk 0:02:28.8]} 21. c5 {[%clk
0:01:10.9]} 21... Red8 {[%clk 0:02:22.8]} 22. Ra4 {[%clk 0:01:06]} 22... Rab8
{[%clk 0:02:20.8]} 23. f4 {[%clk 0:00:58.6]} 23... Nxe3 {[%clk 0:02:00.5]} 24.
fxe3 {[%clk 0:00:57.2]} 24... Ne6 {[%clk 0:02:00.7]} 25. f5 {[%clk 0:00:55.7]}
25... Nxc5 {[%clk 0:02:00.4]} 26. Nxc5 {[%clk 0:00:37.7]} 26... Bxc5 {[%clk
0:02:01.3]} 27. Bc2 {[%clk 0:00:37.2]} 27... b3 {[%clk 0:02:01.6]} 28. Bb1
{[%clk 0:00:34.8]} 28... Bb4 {[%clk 0:01:55.9]} 29. Rd1 {[%clk 0:00:33.5]} 29...
c5 {[%clk 0:01:54.5]} 30. Kf2 {[%clk 0:00:33.3]} 30... Rb5 {[%clk 0:01:50.3]}
31. d4 {[%clk 0:00:32.7]} 31... exd4 {[%clk 0:01:48.2]} 32. exd4 {[%clk
0:00:32.9]} 32... c4 {[%clk 0:01:46.1]} 33. Be4 {[%clk 0:00:29.9]} 33... Bxa5
{[%clk 0:01:37.5]} 34. Rda1 {[%clk 0:00:27.6]} 34... Bb6 {[%clk 0:01:36.8]} 35.
Rxc4 {[%clk 0:00:26.7]} 35... Bxd4+ {[%clk 0:01:36.5]} 36. Kf3 {[%clk
0:00:26.7]} 36... Bxb2 {[%clk 0:01:34.6]} 37. Rxa6 {[%clk 0:00:25.2]} 37... Bf6
{[%clk 0:01:35]} 38. Rac6 {[%clk 0:00:21.9]} 38... b2 {[%clk 0:01:34.7]} 39. Bb1
{[%clk 0:00:22.2]} 39... Rb3+ {[%clk 0:01:28.5]} 40. Ke2 {[%clk 0:00:20.9]}
40... h5 {[%clk 0:01:18.5]} 41. Rc8 {[%clk 0:00:20.2]} 41... Rxc8 {[%clk
0:01:19]} 42. Rxc8+ {[%clk 0:00:21.1]} 42... Kh7 {[%clk 0:01:19.8]} 43. Kd1
{[%clk 0:00:18]} 43... Rxh3 {[%clk 0:01:19.2]} 44. Kc2 {[%clk 0:00:17.9]} 44...
Rh1 {[%clk 0:01:17.6]} 45. Ba2 {[%clk 0:00:15.6]} 45... Rc1+ {[%clk 0:01:17.7]}
0-1

[Event "Early-Titled-Tuesday-Blitz-February-06-2024"]
[Site "Chess.com"]
[Date "2024.02.06"]
[Round "7"]
[White "BeardedNM"]
[Black "annamaja"]
[Result "0-1"]
[WhiteElo "2216"]
[BlackElo "2387"]
[TimeControl "180+1"]
[EndTime "9:16:48 PST"]
[Termination "annamaja won on time"]

1. e4 {[%clk 0:01:30.6]} 1... e6 {[%clk 0:01:31.5]} 2. d4 {[%clk 0:01:30.3]}
2... d5 {[%clk 0:01:31.8]} 3. e5 {[%clk 0:01:30.8]} 3... c5 {[%clk 0:01:31.9]}
4. c3 {[%clk 0:01:31]} 4... Bd7 {[%clk 0:01:32.2]} 5. Nf3 {[%clk 0:01:26.9]}
5... Qb6 {[%clk 0:01:32.4]} 6. Bd3 {[%clk 0:01:25.6]} 6... Bb5 {[%clk
0:01:32.4]} 7. dxc5 {[%clk 0:01:26]} 7... Bxc5 {[%clk 0:01:31.7]} 8. b4 {[%clk
0:01:26.5]} 8... Bxd3 {[%clk 0:01:30.9]} 9. Qxd3 {[%clk 0:01:25.9]} 9... Bf8
{[%clk 0:01:31.5]} 10. O-O {[%clk 0:01:24.1]} 10... Nd7 {[%clk 0:01:29.6]} 11.
Be3 {[%clk 0:01:15.4]} 11... Qc7 {[%clk 0:01:28.9]} 12. Bd4 {[%clk 0:01:08.5]}
12... Ne7 {[%clk 0:01:28.3]} 13. Na3 {[%clk 0:01:04.6]} 13... a6 {[%clk
0:01:27.6]} 14. Nc2 {[%clk 0:01:04.6]} 14... Nc6 {[%clk 0:01:22.9]} 15. Rfe1
{[%clk 0:00:58.7]} 15... Be7 {[%clk 0:01:22.9]} 16. a4 {[%clk 0:00:57.8]} 16...
O-O {[%clk 0:01:22.3]} 17. b5 {[%clk 0:00:52.6]} 17... axb5 {[%clk 0:01:23.2]}
18. axb5 {[%clk 0:00:51.5]} 18... Na5 {[%clk 0:01:20.4]} 19. h4 {[%clk 0:00:25]}
19... h6 {[%clk 0:01:02.4]} 20. Ne3 {[%clk 0:00:21.1]} 20... Nc5 {[%clk
0:00:52.6]} 21. Qe2 {[%clk 0:00:14.9]} 21... Nab3 {[%clk 0:00:50.8]} 22. Rxa8
{[%clk 0:00:12]} 22... Rxa8 {[%clk 0:00:51.7]} 23. h5 {[%clk 0:00:09.9]} 23...
Ne4 {[%clk 0:00:47]} 24. Nd2 {[%clk 0:00:05.2]} 24... Ra2 {[%clk 0:00:44]} 0-1